fUSD/lending_fUSD_20240425
["ID","MTS","AMOUNT","RATE_DAILY","PERIOD"]
[323461053,1714014643913,-506.24313943,0.00011997,2]
[323461054,1714014643922,-2208.97,0.00011997,2]
[323461055,1714014643931,-500.0,0.00011997,2]
[323461056,1714014643940,-500.0,0.00011997,2]
[323461057,1714014643949,-852.888284,0.00011997,2]
[323461058,1714014643958,-505.61414133,0.00011997,2]
[323461059,1714014643967,-852.888284,0.00011997,2]
[323461060,1714014643976,-502.30866305,0.00011997,2]
[323461061,1714014643985,-193.277949,0.00011997,2]
[323461062,1714014643995,-193.277949,0.00011997,2]
[323461063,1714014644005,-500.0,0.00011997,2]
[323461064,1714014644014,-500.0,0.00011997,2]
[323461065,1714014644023,-500.0,0.00011997,2]
[323461066,1714014644033,-504.59801459,0.00011997,2]
[323461067,1714014644042,-500.0,0.00011997,2]
[323461068,1714014644051,-500.0,0.00011997,2]
[323461069,1714014644060,-500.0,0.00011997,2]
[323461070,1714014644069,-500.0,0.00011997,2]
[323461071,1714014644078,-500.0,0.00011997,2]
[323461072,1714014644087,-932.2,0.00011997,2]
[323461073,1714014644096,-500.0,0.00011997,2]
[323461074,1714014644106,-500.0,0.00011997,2]
[323461075,1714014644117,-472.63110361,0.00011997,2]
[323461076,1714014644126,-500.0,0.00011997,2]
[323461077,1714014644135,-167.5588591,0.00011997,2]
[323461078,1714014644143,-1805.13,0.00011997,2]
[323461079,1714014644152,-500.0,0.00011997,2]
[323461080,1714014644161,-717.05,0.00011997,2]
[323461081,1714014644171,-500.0,0.00011997,2]
[323461082,1714014644180,-410.66119584,0.00011997,2]
[323461083,1714014644189,-500.0,0.00011997,2]
[323461084,1714014644198,-500.0,0.00011997,2]
[323461085,1714014644207,-500.0,0.00011997,2]
[323461086,1714014644216,-500.0,0.00011997,2]
[323461087,1714014644225,-500.0,0.00011997,2]
[323461088,1714014644234,-895.87,0.00011997,2]
[323461089,1714014644242,-500.0,0.00011997,2]
[323461090,1714014644251,-887.22,0.00011997,2]
[323461091,1714014644260,-505.86378851,0.00011997,2]
[323461092,1714014644269,-500.0,0.00011997,2]
[323461093,1714014644278,-1144.81,0.00011997,2]
[323461094,1714014644287,-500.0,0.00011997,2]
[323461095,1714014644296,-3212.9,0.00011997,2]
[323461096,1714014644305,-698.67,0.00011997,2]
[323461097,1714014644314,-500.0,0.00011997,2]
[323461098,1714014644323,-500.0,0.00011997,2]
[323461099,1714014644332,-312.48907017,0.00011997,2]
[323461100,1714014644341,-500.0,0.00011997,2]
[323461101,1714014644350,-504.84836741,0.00011997,2]
[323461102,1714014644359,-497.26816504,0.00011997,2]
[323461103,1714014644370,-680.83,0.00011997,2]
[323461104,1714014644380,-507.8132636,0.00011997,2]
[323461105,1714014644388,-519.39778736,0.00011997,2]
[323461106,1714014644398,-505.1778052,0.00011997,2]
[323461107,1714014644407,-500.0,0.00011997,2]
[323461108,1714014644415,-500.0,0.00011997,2]
[323461109,1714014644425,-514.52469173,0.00011997,2]
[323461110,1714014644434,-505.01809633,0.00011997,2]
[323461111,1714014644443,-500.0,0.00011997,2]
[323461112,1714014644453,-500.0,0.00011997,2]
[323461113,1714014644462,-327.45771688,0.00011997,2]
[323461114,1714014644473,-509.11121366,0.00011997,2]
[323461115,1714014644482,-504.08958711,0.00011997,2]
[323461116,1714014644492,-4141.38,0.00011997,2]
[323461117,1714014644501,-500.0,0.00011997,2]
[323461118,1714014644510,-500.0,0.00011997,2]
[323461119,1714014644521,-500.0,0.00011997,2]
[323461120,1714014644530,-527.60466091,0.00011997,2]
[323461121,1714014644539,-506.59336122,0.00011997,2]
[323461122,1714014644549,-500.0,0.00011997,2]
[323461123,1714014644559,-500.0,0.00011997,2]
[323461124,1714014644569,-631.16365849,0.00011997,2]
[323461125,1714014644578,-568.46980308,0.00011997,2]
[323461126,1714014644588,-183.43128404,0.00011997,2]
[323461127,1714014644597,-518.14324983,0.00011997,2]
[323461128,1714014644606,-505.06440966,0.00011997,2]
[323461129,1714014644616,-522.02982253,0.00011997,2]
[323461130,1714014644625,-528.25115084,0.00011997,2]
[323461131,1714014644635,-500.81515322,0.00011997,2]
[323461132,1714014644644,-500.0,0.00011997,2]
[323461133,1714014644654,-500.0,0.00011997,2]
[323461134,1714014644663,-500.0,0.00011997,2]
[323461135,1714014644673,-500.0,0.00011997,2]
[323461136,1714014644683,-504.27479361,0.00011997,2]
[323461137,1714014644692,-506.71977172,0.00011997,2]
[323461138,1714014644702,-505.81205789,0.00011997,2]
[323461139,1714014644711,-500.0,0.00011997,2]
[323461140,1714014644721,-507.60208674,0.00011997,2]
[323461141,1714014644730,-500.0,0.00011997,2]
[323461142,1714014644739,-131107.22103494,0.00011998,2]
[323461145,1714014645968,-404.0,0.00011998,2]
[323461146,1714014646029,-45390.99550273,0.00011998,2]
[323461147,1714014646041,-324.92839964,0.00011998,2]
[323461148,1714014646097,-321970.92233935,0.00011998,2]
[323461149,1714014646160,-155.0,0.00011996,2]
[323461150,1714014646170,-174556.84292086,0.00011998,2]
[323461226,1714015725238,2500.0,0.00025111,120]
[323461241,1714015832050,-354.95,8.837e-05,2]
[323461242,1714015832060,-277.60977817,8.978e-05,2]
[323461243,1714015832070,-87.7060941,8.979e-05,2]
[323461244,1714015832082,-597.5,8.979e-05,2]
[323461245,1714015832095,-557.10821046,8.979e-05,2]
[323461246,1714015832104,-326.72684599,9.598e-05,2]
[323461247,1714015832114,-427.25783952,0.0001,2]
[323461248,1714015832123,-155.0,0.00010623,2]
[323461249,1714015832133,-250.0,0.00010624,2]
[323461250,1714015832143,-1482.59,0.0001067,2]
[323461251,1714015832152,-192.08,0.00010678,2]
[323461252,1714015832162,-200.0,0.00010678,2]
[323461253,1714015832171,-2818.37696997,0.00010717,2]
[323461254,1714015832263,-273.63652806,0.00010717,2]
[323461255,1714015832370,-837.54562561,0.00010717,2]
[323461276,1714015838112,-580.4,0.00010717,2]
[323461299,1714015838327,-1121.61087636,0.00010717,2]
[323461301,1714015838337,-15250.58701495,0.00010995,2]
[323461303,1714015838349,-574.37999999,0.00010995,2]
[323461306,1714015838361,-2603.10643675,0.00010995,2]
[323461308,1714015838372,-3275.80353,0.00010995,2]
[323461309,1714015838396,-654.21511587,0.00010995,2]
[323461310,1714015838438,-1455.62823591,0.00010995,2]
[323461324,1714015840159,-1532.08966653,0.00010995,2]
[323461326,1714015840170,-185.03,0.0001101,2]
[323461327,1714015840179,-1000.0,0.00011047,2]
[323461328,1714015840190,-413.76,0.000111,2]
[323461329,1714015840201,-413.76,0.000111,2]
[323461330,1714015840211,-276.03191158,0.00011101,2]
[323461331,1714015840271,-78.91808842,0.00011101,2]
[323461332,1714015840282,-413.76,0.000113,2]
[323461333,1714015840291,-150.0,0.0001137,2]
[323461334,1714015840300,-9.45620816,0.0001137,2]
[323461335,1714015840327,-153.39379184,0.0001137,2]
[323461336,1714015840336,-150.0,0.0001137,2]
[323461337,1714015840346,-162.67,0.0001137,2]
[323461338,1714015840355,-150.0,0.0001137,2]
[323461339,1714015840364,-2723.81564725,0.00011399,2]
[323461340,1714015840436,-343.8598282,0.00011399,2]
[323461341,1714015840544,-865.22753119,0.00011399,2]
[323461342,1714015840554,-151.6,0.00011604,2]
[323461343,1714015840563,-522.98,0.00011604,2]
[323461344,1714015840573,-165.28,0.00011604,2]
[323461345,1714015840582,-352.79,0.00011604,2]
[323461346,1714015840591,-521.47,0.00011604,2]
[323461347,1714015840600,-150.57,0.00011604,2]
[323461348,1714015840610,-442.82,0.00011604,2]
[323461349,1714015840619,-151.4,0.00011604,2]
[323461350,1714015840629,-162.82,0.00011604,2]
[323461351,1714015840638,-167.77,0.00011636,2]
[323461352,1714015840648,-838.22,0.000117,2]
[323461353,1714015840657,-162.85,0.000117,2]
[323461355,1714015840667,-834.39,0.000117,2]
[323461357,1714015840676,-1820.06,0.000117,2]
[323461359,1714015840686,-150.0,0.000117,2]
[323461361,1714015840695,-300.0,0.000117,2]
[323461363,1714015840705,-253.50210064,0.00011756,2]
[323461365,1714015840714,-1202.8162,0.00011897,2]
[323461367,1714015840724,-324.46238163,0.00011897,2]
[323461369,1714015840733,-3903.94219292,0.00011898,2]
[323461371,1714015840745,-275.950685,0.00011898,2]
[323461567,1714015843378,-976.920342,0.00011898,2]
[323461568,1714015843389,-383.48999995,0.00011898,2]
[323461569,1714015843400,-863.04239845,0.00011898,2]
[323461570,1714015843412,-1487.23232148,0.00011898,2]
[323461571,1714015843492,-7254.82956881,0.00011898,2]
[323461572,1714015843504,-6745.14889911,0.00011898,2]
[323461573,1714015843516,-4039.54,0.00011898,2]
[323461574,1714015843529,-13360.0,0.00011898,2]
[323461575,1714015843556,-31921.08449228,0.00011898,2]
[323461576,1714015843565,-59526.51311256,0.000119,2]
[323461577,1714015843575,-12103.06690976,0.00011984,2]
[323461578,1714015843584,-500.0,0.00011995,2]
[323461579,1714015843594,-500.0,0.00011995,2]
[323461580,1714015843604,-500.0,0.00011995,2]
[323461581,1714015843613,-500.0,0.00011995,2]
[323461582,1714015843624,-500.0,0.00011995,2]
[323461583,1714015843633,-500.0,0.00011995,2]
[323461584,1714015843642,-1159.68,0.00011995,2]
[323461585,1714015843652,-404.59232051,0.00011995,2]
[323461586,1714015843661,-500.0,0.00011995,2]
[323461587,1714015843671,-547.68,0.00011995,2]
[323461588,1714015843681,-1795.68,0.00011995,2]
[323461589,1714015843690,-687.17,0.00011995,2]
[323461590,1714015843699,-500.0,0.00011995,2]
[323461591,1714015843709,-500.0,0.00011995,2]
[323461592,1714015843719,-551.7,0.00011995,2]
[323461593,1714015843729,-500.0,0.00011995,2]
[323461594,1714015843738,-500.0,0.00011995,2]
[323461595,1714015843747,-534.5112131,0.00011995,2]
[323461596,1714015843757,-1000.24,0.00011995,2]
[323461597,1714015843766,-541.94393182,0.00011995,2]
[323461598,1714015843776,-500.0,0.00011995,2]
[323461599,1714015843788,-500.0,0.00011995,2]
[323461600,1714015843797,-500.0,0.00011995,2]
[323461601,1714015843806,-500.0,0.00011995,2]
[323461602,1714015843819,-500.0,0.00011995,2]
[323461603,1714015843829,-500.0,0.00011995,2]
[323461604,1714015843838,-500.0,0.00011995,2]
[323461605,1714015843847,-1362.65,0.00011995,2]
[323461606,1714015843858,-4661.66,0.00011995,2]
[323461607,1714015843867,-500.0,0.00011995,2]
[323461608,1714015843876,-500.0,0.00011995,2]
[323461609,1714015843886,-500.0,0.00011995,2]
[323461610,1714015843895,-541.70855178,0.00011995,2]
[323461611,1714015843906,-514.4422723,0.00011995,2]
[323461612,1714015843916,-500.0,0.00011995,2]
[323461613,1714015843925,-500.0,0.00011995,2]
[323461614,1714015843934,-500.0,0.00011995,2]
[323461615,1714015843943,-613.81220251,0.00011995,2]
[323461616,1714015843953,-500.0,0.00011995,2]
[323461617,1714015843962,-392.71589351,0.00011995,2]
[323461618,1714015843972,-574.75515632,0.00011995,2]
[323461619,1714015843981,-524.9642871,0.00011995,2]
[323461620,1714015843990,-245.79,0.00011995,2]
[323461621,1714015843999,-503.44446569,0.00011995,2]
[323461622,1714015844009,-1779.87578479,0.00011996,2]
[323461623,1714015844018,-6301.38796289,0.00011996,2]
[323461624,1714015844030,-547.46957672,0.00011996,2]
[323461625,1714015844051,-3765.65108282,0.00011996,2]
[323461629,1714015846163,-369.32938509,0.0001199,2]
[323461630,1714015846173,-500.0,0.00011995,2]
[323461631,1714015846183,-771.97,0.00011995,2]
[323461632,1714015846193,-2475.11108835,0.00011996,2]
[323461633,1714015846203,-214.3759611,0.00011996,2]
[323461634,1714015846213,-2387.93708822,0.00011996,2]
[323461635,1714015846222,-155.83775056,0.00011996,2]
[323461636,1714015846232,-274.23872668,0.00011996,2]
[323461637,1714015846245,-227.70908948,0.00011996,2]
[323461638,1714015846254,-374.63091052,0.00011996,2]
[323461639,1714015846274,-125.36908948,0.00011996,2]
[323461640,1714015846286,-421.12283116,0.00011996,2]
[323461641,1714015846435,-200.53142766,0.00011996,2]
[323461642,1714015846445,-500.0,0.00011996,2]
[323461643,1714015846454,-92.6554242,0.00011996,2]
[323463422,1714016488213,-1608.83176517,9.214e-05,2]
[323463423,1714016488240,-185.07318544,9.215e-05,2]
[323463424,1714016488267,-155.0,9.215e-05,2]
[323463425,1714016488295,-1242.31430456,9.216e-05,2]
[323463426,1714016488320,-345.33,9.219e-05,2]
[323463427,1714016832297,340.55,9.189e-05,2]
[323463438,1714017032264,-298.81932009,0.0001,2]
[323463439,1714017032275,-155.0,0.0001,2]
[323463440,1714017032286,-68.51044631,0.00010878,2]
[323463441,1714017032300,-491.78785369,0.00010878,2]
[323463442,1714017032309,-155.0,0.00010963,2]
[323463443,1714017032318,-239.55593542,0.00010964,2]
[323463444,1714017032330,-609.67999998,0.00010964,2]
[323463445,1714017032374,-393.07836916,0.00010964,2]
[323463446,1714017032384,-733.91839866,0.00010968,2]
[323463447,1714017032394,-1449.58,0.00011031,2]
[323463448,1714017032405,-1000.0,0.00011038,2]
[323463449,1714017032416,-1470.56,0.000111,2]
[323463450,1714017032426,-157.24133803,0.00011246,2]
[323463451,1714017032437,-3539.61270598,0.00011398,2]
[323463452,1714017032447,-150.0,0.00011452,2]
[323463453,1714017032458,-2010.76,0.00011453,2]
[323463454,1714017032468,-340.55,0.00011453,2]
[323463455,1714017032479,-6906.12,0.00011483,2]
[323463456,1714017032489,-7500.0,0.00011895,2]
[323463457,1714017032506,-675.61321234,0.00011895,2]
[323463458,1714017032528,-4560.10985409,0.00011895,2]
[323463459,1714017032559,-366.15950779,0.00011895,2]
[323463460,1714017032604,-4398.11742578,0.00011895,2]
[323463461,1714017032615,-157.24133803,0.00011896,2]
[323463462,1714017032626,-601.59858524,0.00011896,2]
[323463463,1714017032636,-168.24,0.000119,2]
[323463464,1714017032646,-818.98,0.000119,2]
[323463465,1714017032657,-162.85,0.000119,2]
[323463467,1714017032667,-162.85,0.000119,2]
[323463469,1714017032678,-910.54,0.000119,2]
[323463471,1714017032688,-910.54,0.000119,2]
[323463473,1714017032699,-162.85,0.000119,2]
[323463475,1714017032709,-162.85,0.000119,2]
[323463476,1714017032722,-910.54,0.000119,2]
[323463478,1714017032940,-363.16,0.000119,2]
[323463481,1714017032953,-162.85,0.000119,2]
[323463482,1714017032964,-329.63,0.000119,2]
[323463485,1714017032975,-151.03,0.0001194,2]
[323463486,1714017032985,-181.33015789,0.00011986,2]
[323463488,1714017032996,-427.17989007,0.00011992,2]
[323463489,1714017033007,-168.4152174,0.00011993,2]
[323463490,1714017033018,-741.55620612,0.00011993,2]
[323463491,1714017033032,-155.94516969,0.00011993,2]
[323463492,1714017033043,-1269.07781505,0.00011993,2]
[323463493,1714017033072,-342.10243038,0.00011993,2]
[323463494,1714017033084,-158.9351693,0.00011994,2]
[323463497,1714017038355,-78.38349057,0.00011994,2]
[323463498,1714017038366,-463.34119658,0.00011994,2]
[323463499,1714017038377,-507.30020116,0.00011994,2]
[323463500,1714017038388,-504.26522788,0.00011994,2]
[323463501,1714017038399,-314.25651816,0.00011994,2]
[323463502,1714017038414,-189.21334405,0.00011994,2]
[323463503,1714017038424,-502.33403103,0.00011994,2]
[323463504,1714017038435,-511.06844343,0.00011994,2]
[323463505,1714017038446,-521.60458048,0.00011994,2]
[323463506,1714017038456,-216.5295986,0.00011994,2]
[323463507,1714017038467,-603.31244059,0.00011994,2]
[323463508,1714017038480,-500.0,0.00011994,2]
[323463509,1714017038490,-504.96220621,0.00011994,2]
[323463510,1714017038501,-500.0,0.00011994,2]
[323463511,1714017038511,-506.45514045,0.00011994,2]
[323463512,1714017038521,-500.0,0.00011994,2]
[323463513,1714017038531,-504.86027487,0.00011994,2]
[323463514,1714017038541,-500.0,0.00011994,2]
[323463515,1714017038554,-627.02463669,0.00011994,2]
[323463516,1714017038564,-513.06040431,0.00011994,2]
[323463517,1714017038575,-500.0,0.00011994,2]
[323463518,1714017038587,-500.0,0.00011994,2]
[323463519,1714017038598,-500.0,0.00011994,2]
[323463520,1714017038609,-500.0,0.00011994,2]
[323463521,1714017038620,-508.31065644,0.00011994,2]
[323463522,1714017038631,-500.0,0.00011994,2]
[323463523,1714017038642,-631.62,0.00011994,2]
[323463524,1714017038652,-500.0,0.00011994,2]
[323463525,1714017038663,-503.16026305,0.00011994,2]
[323463526,1714017038674,-500.0,0.00011994,2]
[323463527,1714017038685,-500.0,0.00011994,2]
[323463528,1714017038695,-500.0,0.00011994,2]
[323463529,1714017038706,-500.0,0.00011994,2]
[323463530,1714017038717,-500.0,0.00011994,2]
[323463531,1714017038728,-500.0,0.00011994,2]
[323463532,1714017038739,-171.8416668,0.00011994,2]
[323463533,1714017038753,-328.1583332,0.00011994,2]
[323463534,1714017038764,-508.22650686,0.00011994,2]
[323463535,1714017038775,-500.0,0.00011994,2]
[323463536,1714017038786,-500.0,0.00011994,2]
[323463537,1714017038796,-500.0,0.00011994,2]
[323463538,1714017038810,-500.0,0.00011994,2]
[323463539,1714017038820,-500.0,0.00011994,2]
[323463540,1714017038831,-500.0,0.00011994,2]
[323463541,1714017038842,-500.0,0.00011994,2]
[323463542,1714017038853,-500.0,0.00011994,2]
[323463543,1714017038863,-500.0,0.00011994,2]
[323463544,1714017038873,-500.0,0.00011994,2]
[323463545,1714017038884,-500.0,0.00011994,2]
[323463546,1714017038895,-107.51515994,0.00011994,2]
[323463547,1714017038913,-392.48484006,0.00011994,2]
[323463548,1714017038924,-564.3249254,0.00011994,2]
[323463549,1714017038934,-500.0,0.00011994,2]
[323463550,1714017038944,-500.0,0.00011994,2]
[323463551,1714017038954,-503.71915811,0.00011994,2]
[323463552,1714017038965,-500.0,0.00011994,2]
[323463553,1714017038975,-500.0,0.00011994,2]
[323463554,1714017038986,-500.0,0.00011994,2]
[323463555,1714017038996,-165.23395976,0.00011994,2]
[323463556,1714017039018,-292.82652537,0.00011994,2]
[323463557,1714017039033,-45.42460245,0.00011994,2]
[323463558,1714017039044,-500.0,0.00011994,2]
[323463559,1714017039055,-500.0,0.00011994,2]
[323463560,1714017039067,-500.0,0.00011994,2]
[323463561,1714017039078,-500.0,0.00011994,2]
[323463562,1714017039089,-501.99345743,0.00011994,2]
[323463563,1714017039101,-500.0,0.00011994,2]
[323463564,1714017039112,-500.0,0.00011994,2]
[323463565,1714017039123,-507.24420554,0.00011994,2]
[323463566,1714017039133,-500.0,0.00011994,2]
[323463567,1714017039144,-500.0,0.00011994,2]
[323463568,1714017039155,-500.0,0.00011994,2]
[323463569,1714017039166,-504.18626171,0.00011994,2]
[323463570,1714017039176,-507.57753802,0.00011994,2]
[323463571,1714017039187,-506.61889573,0.00011994,2]
[323463572,1714017039198,-500.0,0.00011994,2]
[323463573,1714017039208,-500.0,0.00011994,2]
[323463574,1714017039225,-503.6130625,0.00011994,2]
[323463575,1714017039236,-500.0,0.00011994,2]
[323463576,1714017039246,-507.18207936,0.00011994,2]
[323463577,1714017039257,-496.03343574,0.00011994,2]
[323463578,1714017039269,-619.59411445,0.00011994,2]
[323463579,1714017039279,-502.16022091,0.00011994,2]
[323463580,1714017039289,-506.99603883,0.00011994,2]
[323463581,1714017039304,-520.67999265,0.00011994,2]
[323463582,1714017039315,-506.03068549,0.00011994,2]
[323463583,1714017039325,-511.49215069,0.00011994,2]
[323463584,1714017039335,-500.0,0.00011994,2]
[323463585,1714017039346,-503.96636362,0.00011994,2]
[323463586,1714017039356,-500.29947669,0.00011994,2]
[323463587,1714017039367,-500.0,0.00011994,2]
[323463588,1714017039378,-502.27595004,0.00011994,2]
[323463589,1714017039389,-514.90243018,0.00011994,2]
[323463590,1714017039400,-513.69564195,0.00011994,2]
[323463591,1714017039411,-500.0,0.00011994,2]
[323463592,1714017039422,-504.94146292,0.00011994,2]
[323463593,1714017039432,-500.0,0.00011994,2]
[323463594,1714017039443,-501.61626302,0.00011994,2]
[323463595,1714017039454,-500.0,0.00011994,2]
[323463596,1714017039465,-502.20442925,0.00011994,2]
[323463597,1714017039476,-503.32500695,0.00011994,2]
[323463598,1714017039487,-507.09267694,0.00011994,2]
[323463599,1714017039497,-512.84460327,0.00011994,2]
[323463600,1714017039508,-515.94565761,0.00011994,2]
[323463601,1714017039519,-500.0,0.00011994,2]
[323463602,1714017039529,-512.90849153,0.00011994,2]
[323463603,1714017039540,-513.41567046,0.00011994,2]
[323463604,1714017039552,-500.0,0.00011994,2]
[323463605,1714017039564,-511.80170116,0.00011994,2]
[323463606,1714017039574,-505.12299739,0.00011994,2]
[323463607,1714017039585,-510.70871558,0.00011994,2]
[323463608,1714017039596,-500.0,0.00011994,2]
[323463609,1714017039606,-500.0,0.00011994,2]
[323463610,1714017039617,-530.23974703,0.00011994,2]
[323463611,1714017039628,-501.41200155,0.00011994,2]
[323463612,1714017039638,-506.02781847,0.00011994,2]
[323463613,1714017039649,-500.0,0.00011994,2]
[323463614,1714017039660,-500.0,0.00011994,2]
[323463615,1714017039670,-511.35418792,0.00011994,2]
[323463616,1714017039681,-500.0,0.00011994,2]
[323463617,1714017039691,-500.0,0.00011994,2]
[323463618,1714017039701,-500.0,0.00011994,2]
[323463619,1714017039712,-507.34362552,0.00011994,2]
[323463620,1714017039723,-493.24794868,0.00011994,2]
[323463621,1714017039735,-502.65487298,0.00011994,2]
[323463622,1714017039746,-500.0,0.00011994,2]
[323463623,1714017039756,-629.62,0.00011994,2]
[323463624,1714017039767,-500.0,0.00011994,2]
[323463625,1714017039777,-504.63731708,0.00011994,2]
[323463626,1714017039788,-500.0,0.00011994,2]
[323463627,1714017039798,-518.400705,0.00011994,2]
[323463628,1714017039814,-502.41549251,0.00011994,2]
[323463629,1714017039826,-524.83698198,0.00011994,2]
[323463630,1714017039838,-621.57518901,0.00011994,2]
[323463631,1714017039848,-150.0,0.00011994,2]
[323463632,1714017039859,-507.28759798,0.00011994,2]
[323463633,1714017039871,-500.0,0.00011994,2]
[323463634,1714017039881,-560.06975489,0.00011994,2]
[323463635,1714017039892,-502.06585337,0.00011994,2]
[323463636,1714017039902,-506.05011055,0.00011994,2]
[323463637,1714017039912,-500.0,0.00011994,2]
[323463638,1714017039923,-500.0,0.00011994,2]
[323463639,1714017039934,-635.54723189,0.00011994,2]
[323463640,1714017039945,-501.37687305,0.00011994,2]
[323463641,1714017039956,-183.8793816,0.00011994,2]
[323463642,1714017039966,-500.0,0.00011994,2]
[323463643,1714017039976,-500.0,0.00011994,2]
[323463644,1714017039987,-546.24231813,0.00011994,2]
[323463645,1714017039997,-500.0,0.00011994,2]
[323463646,1714017040008,-503.86802354,0.00011994,2]
[323463647,1714017040018,-501.920066,0.00011994,2]
[323463648,1714017040029,-1729.91,0.00011994,2]
[323463649,1714017040039,-500.0,0.00011994,2]
[323463650,1714017040053,-511.14018939,0.00011994,2]
[323463651,1714017040063,-502.61630787,0.00011994,2]
[323463652,1714017040074,-507.81321189,0.00011994,2]
[323463653,1714017040084,-500.0,0.00011994,2]
[323463655,1714017040094,-507.00929133,0.00011994,2]
[323463657,1714017040104,-502.22901636,0.00011994,2]
[323463659,1714017040115,-500.0,0.00011994,2]
[323463661,1714017040128,-527.25,0.00011994,2]
[323463664,1714017040139,-173.21673514,0.00011994,2]
[323463666,1714017040149,-508.93041194,0.00011994,2]
[323463668,1714017040159,-500.0,0.00011994,2]
[323463670,1714017040170,-500.0,0.00011994,2]
[323463672,1714017040180,-500.0,0.00011994,2]
[323463674,1714017040191,-500.0,0.00011994,2]
[323463676,1714017040200,-504.22958247,0.00011994,2]
[323463678,1714017040213,-504.03954661,0.00011994,2]
[323463679,1714017040225,-500.0,0.00011994,2]
[323463680,1714017040236,-540.58998078,0.00011994,2]
[323463681,1714017040247,-578.18395651,0.00011994,2]
[323463682,1714017040259,-509.71855062,0.00011994,2]
[323463683,1714017040270,-500.0,0.00011994,2]
[323463684,1714017040280,-519.04871002,0.00011994,2]
[323463686,1714017040291,-500.0,0.00011994,2]
[323463688,1714017040304,-503.63610716,0.00011994,2]
[323463690,1714017040314,-503.05572878,0.00011994,2]
[323463693,1714017040324,-500.0,0.00011994,2]
[323463696,1714017040338,-508.42207181,0.00011994,2]
[323463698,1714017040348,-205.14758053,0.00011994,2]
[323463699,1714017040359,-500.0,0.00011994,2]
[323463700,1714017040370,-507.16442601,0.00011994,2]
[323463701,1714017040380,-500.0,0.00011994,2]
[323463702,1714017040393,-492.61481354,0.00011994,2]
[323463703,1714017040404,-512.07974688,0.00011994,2]
[323463704,1714017040415,-615.22,0.00011994,2]
[323463705,1714017040630,-500.0,0.00011994,2]
[323463706,1714017040701,-500.0,0.00011994,2]
[323463707,1714017040713,-503.3289358,0.00011994,2]
[323463708,1714017040724,-500.0,0.00011994,2]
[323463709,1714017040734,-448.66862022,0.00011994,2]
[323463710,1714017040762,-60.90632777,0.00011994,2]
[323463711,1714017040773,-502.68680312,0.00011994,2]
[323463712,1714017040784,-592.67,0.00011994,2]
[323463713,1714017040794,-530.72210814,0.00011994,2]
[323463714,1714017040809,-500.69,0.00011994,2]
[323463715,1714017040819,-509.7394014,0.00011994,2]
[323463716,1714017040830,-3538.02,0.00011994,2]
[323463717,1714017040842,-504.96398025,0.00011994,2]
[323463718,1714017040852,-507.26072826,0.00011994,2]
[323463719,1714017040863,-511.68630656,0.00011994,2]
[323463720,1714017040874,-589.15,0.00011994,2]
[323463721,1714017040885,-513.86635608,0.00011994,2]
[323463722,1714017040895,-505.99167858,0.00011994,2]
[323463723,1714017040906,-533.27,0.00011994,2]
[323463724,1714017040916,-503.72241895,0.00011994,2]
[323463725,1714017040927,-502.70673699,0.00011994,2]
[323463726,1714017040937,-500.57057714,0.00011994,2]
[323463727,1714017040949,-500.0,0.00011994,2]
[323463729,1714017040959,-503.43517026,0.00011994,2]
[323463730,1714017040968,-501.19654723,0.00011994,2]
[323463731,1714017040979,-1720.86,0.00011994,2]
[323463732,1714017040990,-500.0,0.00011994,2]
[323463733,1714017041000,-506.95093954,0.00011994,2]
[323463734,1714017041011,-748.24,0.00011994,2]